[Event "*** Titled Tuesday Blitz"]
[Site "Chess.com"]
[Date "2021.03.09"]
[Round "8"]
[White "Kildepiotr"]
[Black "KubaGepard"]
[Result "1-0"]
[WhiteElo "2569"]
[BlackElo "2408"]
[TimeControl "180+1"]
[EndTime "11:31:03 PST"]
[Termination "Kildepiotr won by resignation"]

1. Nf3 {[%clk 0:03:00.9]} 1... d5 {[%clk 0:02:59.2]} 2. g3 {[%clk 0:03:00.3]}
2... Nf6 {[%clk 0:02:57.9]} 3. Bg2 {[%clk 0:02:58]} 3... Nbd7 {[%clk 0:02:58]}
4. O-O {[%clk 0:02:58.5]} 4... e5 {[%clk 0:02:57.1]} 5. d3 {[%clk 0:02:58.8]}
5... Bd6 {[%clk 0:02:56.7]} 6. Nbd2 {[%clk 0:02:59.3]} 6... O-O {[%clk
0:02:49.3]} 7. e4 {[%clk 0:02:59.6]} 7... dxe4 {[%clk 0:02:46.1]} 8. dxe4 {[%clk
0:03:00.5]} 8... c6 {[%clk 0:02:46.6]} 9. a4 {[%clk 0:02:59.6]} 9... a5 {[%clk
0:02:44.3]} 10. Nc4 {[%clk 0:02:57.1]} 10... Bc7 {[%clk 0:02:43.8]} 11. Qe2
{[%clk 0:02:56.8]} 11... h6 {[%clk 0:02:40.8]} 12. b3 {[%clk 0:02:55.8]} 12...
Re8 {[%clk 0:02:36.1]} 13. Rd1 {[%clk 0:02:53.7]} 13... Qe7 {[%clk 0:02:26.6]}
14. Ba3 {[%clk 0:02:52.8]} 14... Nc5 {[%clk 0:02:23.8]} 15. Ne1 {[%clk 0:02:49]}
15... b6 {[%clk 0:02:21.2]} 16. Nd3 {[%clk 0:02:47.2]} 16... Nfd7 {[%clk
0:02:12.4]} 17. Qe3 {[%clk 0:02:47]} 17... Ba6 {[%clk 0:02:07]} 18. Nxc5 {[%clk
0:02:46.7]} 18... Nxc5 {[%clk 0:02:04.2]} 19. Nxa5 {[%clk 0:02:44.1]} 19... Qe6
{[%clk 0:01:53.6]} 20. Bxc5 {[%clk 0:02:42.4]} 20... bxc5 {[%clk 0:01:51.6]} 21.
Qxc5 {[%clk 0:02:39.1]} 21... Bxa5 {[%clk 0:01:39.4]} 22. Qxa5 {[%clk
0:02:30.3]} 22... Be2 {[%clk 0:01:37.4]} 23. Qc5 {[%clk 0:02:28.7]} 23... Bxd1
{[%clk 0:01:35.9]} 24. Rxd1 {[%clk 0:02:29.6]} 24... Qg4 {[%clk 0:01:33.9]} 25.
Rd6 {[%clk 0:02:27.4]} 25... Rad8 {[%clk 0:01:18.1]} 26. h3 {[%clk 0:02:21.8]}
26... Qe2 {[%clk 0:01:14.7]} 27. Qxc6 {[%clk 0:02:14.6]} 27... Rxd6 {[%clk
0:01:13.8]} 28. Qxd6 {[%clk 0:02:14.6]} 28... Qxc2 {[%clk 0:01:14.3]} 29. Qd5
{[%clk 0:02:12.1]} 29... Rc8 {[%clk 0:01:06]} 30. Qxe5 {[%clk 0:02:00.5]} 30...
Qxb3 {[%clk 0:00:58.5]} 31. a5 {[%clk 0:02:00.1]} 31... Qa2 {[%clk 0:00:48.6]}
32. Bf1 {[%clk 0:01:57.6]} 32... Rc1 {[%clk 0:00:45.6]} 33. Kg2 {[%clk
0:01:53.2]} 33... Rc2 {[%clk 0:00:41.9]} 34. Qb8+ {[%clk 0:01:39.6]} 34... Kh7
{[%clk 0:00:39.6]} 35. Qf4 {[%clk 0:01:40]} 35... Qxa5 {[%clk 0:00:38.9]} 36.
Qxf7 {[%clk 0:01:38.2]} 36... Qe5 {[%clk 0:00:37.4]} 37. Qf3 {[%clk 0:01:19.7]}
37... Rc3 {[%clk 0:00:33.7]} 38. Qg4 {[%clk 0:01:15.4]} 38... Rc1 {[%clk
0:00:30.5]} 39. Be2 {[%clk 0:01:11.3]} 39... Re1 {[%clk 0:00:24.6]} 40. Bf3
{[%clk 0:01:10.3]} 40... Ra1 {[%clk 0:00:19.6]} 41. Qd7 {[%clk 0:01:07.7]} 41...
Ra5 {[%clk 0:00:17]} 42. h4 {[%clk 0:01:06.6]} 42... Qa1 {[%clk 0:00:16.6]} 43.
Bg4 {[%clk 0:01:03.8]} 43... Qf6 {[%clk 0:00:11.9]} 44. Bf5+ {[%clk 0:01:02.6]}
44... Kg8 {[%clk 0:00:11.8]} 45. Qe8+ {[%clk 0:01:02.4]} 45... Qf8 {[%clk
0:00:11.4]} 46. Be6+ {[%clk 0:01:02.6]} 46... Kh7 {[%clk 0:00:11.3]} 47. Qxf8
{[%clk 0:01:02.9]} 1-0

[Event "*** Titled Tuesday Blitz"]
[Site "Chess.com"]
[Date "2021.03.09"]
[Round "8"]
[White "Mr_Sinigami"]
[Black "mapleaff"]
[Result "1-0"]
[WhiteElo "2582"]
[BlackElo "2398"]
[TimeControl "180+1"]
[EndTime "11:31:03 PST"]
[Termination "Mr_Sinigami won by resignation"]

1. b3 {[%clk 0:02:59.2]} 1... e6 {[%clk 0:02:59.8]} 2. Bb2 {[%clk 0:02:59.9]}
2... Nf6 {[%clk 0:02:59.7]} 3. g3 {[%clk 0:03:00.4]} 3... Be7 {[%clk 0:03:00.1]}
4. Bg2 {[%clk 0:03:00.5]} 4... O-O {[%clk 0:03:00.6]} 5. Nf3 {[%clk 0:02:59.1]}
5... d5 {[%clk 0:03:01]} 6. O-O {[%clk 0:02:59]} 6... c5 {[%clk 0:03:01.1]} 7.
d4 {[%clk 0:02:58.3]} 7... Nc6 {[%clk 0:02:59.9]} 8. Nc3 {[%clk 0:02:45.1]} 8...
cxd4 {[%clk 0:02:58]} 9. Nxd4 {[%clk 0:02:44.9]} 9... Nxd4 {[%clk 0:02:57.7]}
10. Qxd4 {[%clk 0:02:45.2]} 10... a6 {[%clk 0:02:56.2]} 11. e4 {[%clk
0:02:43.6]} 11... dxe4 {[%clk 0:02:50.6]} 12. Nxe4 {[%clk 0:02:44.5]} 12... Qxd4
{[%clk 0:02:49.3]} 13. Bxd4 {[%clk 0:02:44.1]} 13... Rd8 {[%clk 0:02:39.4]} 14.
Rfd1 {[%clk 0:02:42.5]} 14... Kf8 {[%clk 0:02:00.9]} 15. c4 {[%clk 0:02:36.1]}
15... a5 {[%clk 0:01:20.5]} 16. Bb6 {[%clk 0:02:20.2]} 16... Rxd1+ {[%clk
0:01:19.1]} 17. Rxd1 {[%clk 0:02:19.8]} 17... Nxe4 {[%clk 0:01:18.3]} 18. Bxe4
{[%clk 0:02:19.3]} 18... f5 {[%clk 0:01:18.9]} 19. Bf3 {[%clk 0:02:18]} 19... a4
{[%clk 0:01:18.1]} 20. h4 {[%clk 0:01:55.6]} 20... axb3 {[%clk 0:01:17.5]} 21.
axb3 {[%clk 0:01:56.1]} 21... Ra3 {[%clk 0:01:15.3]} 22. Rd3 {[%clk 0:01:55.8]}
22... e5 {[%clk 0:01:09.6]} 23. Bd5 {[%clk 0:01:54.9]} 23... e4 {[%clk
0:01:06.3]} 24. Re3 {[%clk 0:01:54.8]} 24... h6 {[%clk 0:00:43.7]} 25. c5 {[%clk
0:01:50.6]} 25... g5 {[%clk 0:00:39.4]} 26. h5 {[%clk 0:01:51]} 26... Bf6 {[%clk
0:00:30.4]} 27. b4 {[%clk 0:01:45.6]} 27... Ra1+ {[%clk 0:00:26.8]} 28. Kg2
{[%clk 0:01:45.5]} 28... Rb1 {[%clk 0:00:23.5]} 29. Rb3 {[%clk 0:01:42.4]} 29...
Rxb3 {[%clk 0:00:22.2]} 30. Bxb3 {[%clk 0:01:42.1]} 30... Bc3 {[%clk 0:00:11.7]}
31. b5 {[%clk 0:01:41.8]} 31... Bd7 {[%clk 0:00:10.5]} 32. Bc4 {[%clk
0:01:37.9]} 32... Ke7 {[%clk 0:00:09.1]} 33. Bc7 {[%clk 0:01:36.5]} 33... Bd4
{[%clk 0:00:08.5]} 34. Bd6+ {[%clk 0:01:36.2]} 34... Kf6 {[%clk 0:00:07.6]} 35.
Bd5 {[%clk 0:01:27.3]} 35... Bxb5 {[%clk 0:00:06.6]} 36. Bxb7 {[%clk 0:01:27.5]}
36... Ke6 {[%clk 0:00:07.1]} 37. Bf8 {[%clk 0:01:25.1]} 37... Bd7 {[%clk
0:00:03.9]} 38. c6 {[%clk 0:01:23.2]} 38... Be8 {[%clk 0:00:03.2]} 39. c7 {[%clk
0:01:21.8]} 39... Bd7 {[%clk 0:00:03.4]} 40. c8=Q {[%clk 0:01:21.9]} 40... Bxc8
{[%clk 0:00:03.9]} 41. Bxc8+ {[%clk 0:01:22.8]} 41... Kf7 {[%clk 0:00:03.5]} 42.
Bxh6 {[%clk 0:01:22.3]} 42... f4 {[%clk 0:00:03.9]} 43. Bxg5 {[%clk 0:01:21.9]}
43... fxg3 {[%clk 0:00:04.3]} 44. fxg3 {[%clk 0:01:21.3]} 44... e3 {[%clk
0:00:04.8]} 45. Kf3 {[%clk 0:01:21.4]} 1-0

[Event "*** Titled Tuesday Blitz"]
[Site "Chess.com"]
[Date "2021.03.09"]
[Round "8"]
[White "Agoking701"]
[Black "Haykoooo0o"]
[Result "0-1"]
[WhiteElo "2350"]
[BlackElo "2492"]
[TimeControl "180+1"]
[EndTime "11:31:06 PST"]
[Termination "Haykoooo0o won by resignation"]

1. e4 {[%clk 0:01:29.6]} 1... c5 {[%clk 0:02:58.5]} 2. Nf3 {[%clk 0:01:29.4]}
2... e6 {[%clk 0:02:59]} 3. g3 {[%clk 0:01:26.1]} 3... Qc7 {[%clk 0:02:57.3]} 4.
Bg2 {[%clk 0:01:24.5]} 4... b5 {[%clk 0:02:57.7]} 5. O-O {[%clk 0:01:24.5]} 5...
Bb7 {[%clk 0:02:56.9]} 6. Re1 {[%clk 0:01:25.4]} 6... d6 {[%clk 0:02:57]} 7. d4
{[%clk 0:01:25.6]} 7... cxd4 {[%clk 0:02:56]} 8. Nxd4 {[%clk 0:01:26.5]} 8... a6
{[%clk 0:02:56.5]} 9. a4 {[%clk 0:01:27.1]} 9... bxa4 {[%clk 0:02:53.2]} 10. Nc3
{[%clk 0:01:26.1]} 10... Nf6 {[%clk 0:02:53]} 11. Nxa4 {[%clk 0:01:25.7]} 11...
Nbd7 {[%clk 0:02:52.8]} 12. b3 {[%clk 0:01:21.6]} 12... Be7 {[%clk 0:02:52.6]}
13. Bb2 {[%clk 0:01:21.8]} 13... O-O {[%clk 0:02:53.2]} 14. c4 {[%clk
0:01:22.3]} 14... Rfd8 {[%clk 0:02:50.5]} 15. Qe2 {[%clk 0:01:21.8]} 15... Rac8
{[%clk 0:02:47.5]} 16. Rec1 {[%clk 0:01:19.9]} 16... Ne5 {[%clk 0:02:39.2]} 17.
f4 {[%clk 0:01:17.6]} 17... Nc6 {[%clk 0:02:38.3]} 18. Kh1 {[%clk 0:01:14.9]}
18... Na5 {[%clk 0:02:28.5]} 19. Rc3 {[%clk 0:01:03.7]} 19... e5 {[%clk
0:02:19.8]} 20. Nf5 {[%clk 0:01:03.5]} 20... Bf8 {[%clk 0:02:19.5]} 21. Rac1
{[%clk 0:00:56.3]} 21... g6 {[%clk 0:02:18.4]} 22. Nh4 {[%clk 0:00:47.1]} 22...
Bg7 {[%clk 0:02:16.9]} 23. b4 {[%clk 0:00:46.1]} 23... Nc6 {[%clk 0:02:15.2]}
24. Rb3 {[%clk 0:00:40.3]} 24... Nd4 {[%clk 0:02:09.9]} 25. Bxd4 {[%clk
0:00:40.1]} 25... exd4 {[%clk 0:02:10.8]} 26. c5 {[%clk 0:00:34.1]} 26... Re8
{[%clk 0:02:08.2]} 27. Qd3 {[%clk 0:00:20.3]} 27... Nxe4 {[%clk 0:02:06.5]} 28.
Rb2 {[%clk 0:00:16.6]} 28... Nc3 {[%clk 0:02:01.5]} 29. Nxc3 {[%clk 0:00:15.9]}
29... dxc3 {[%clk 0:02:00.5]} 30. Rf2 {[%clk 0:00:14.9]} 30... dxc5 {[%clk
0:01:56.1]} 31. bxc5 {[%clk 0:00:13.2]} 31... Bxg2+ {[%clk 0:01:55]} 32. Nxg2
{[%clk 0:00:14.1]} 32... Qxc5 {[%clk 0:01:54.5]} 33. Ra2 {[%clk 0:00:12.1]}
33... a5 {[%clk 0:01:53.3]} 34. h3 {[%clk 0:00:11.2]} 34... Rcd8 {[%clk
0:01:47.7]} 35. Qf3 {[%clk 0:00:07.6]} 35... Qb4 {[%clk 0:01:42.3]} 36. Kh2
{[%clk 0:00:07.6]} 36... Rd2 {[%clk 0:01:35.1]} 37. Rcc2 {[%clk 0:00:06.9]}
37... Rxc2 {[%clk 0:01:32]} 38. Rxc2 {[%clk 0:00:07.8]} 38... Rd8 {[%clk
0:01:30.3]} 39. Qe2 {[%clk 0:00:07.9]} 39... a4 {[%clk 0:01:25.1]} 40. Ne3
{[%clk 0:00:07.2]} 40... Rd2 {[%clk 0:01:21.9]} 41. Rxd2 {[%clk 0:00:06.8]}
41... cxd2 {[%clk 0:01:22.6]} 42. Nd5 {[%clk 0:00:05.3]} 42... Qd4 {[%clk
0:01:17.9]} 43. Ne7+ {[%clk 0:00:03]} 43... Kh8 {[%clk 0:01:16]} 44. Nc6 {[%clk
0:00:02.7]} 44... Qd7 {[%clk 0:01:10]} 45. Nb8 {[%clk 0:00:02.8]} 45... d1=Q
{[%clk 0:01:07.2]} 0-1

[Event "*** Titled Tuesday Blitz"]
[Site "Chess.com"]
[Date "2021.03.09"]
[Round "8"]
[White "dodorox"]
[Black "jd001"]
[Result "0-1"]
[WhiteElo "2116"]
[BlackElo "2228"]
[TimeControl "180+1"]
[EndTime "11:31:06 PST"]
[Termination "jd001 won on time"]

1. d4 {[%clk 0:03:00.9]} 1... e6 {[%clk 0:02:59.7]} 2. c4 {[%clk 0:03:00.8]}
2... f5 {[%clk 0:02:59.8]} 3. g3 {[%clk 0:02:59.2]} 3... Nf6 {[%clk 0:02:59.8]}
4. Bg2 {[%clk 0:02:59.5]} 4... Be7 {[%clk 0:03:00.3]} 5. Nh3 {[%clk 0:02:56.9]}
5... O-O {[%clk 0:03:00.6]} 6. O-O {[%clk 0:02:57.1]} 6... d6 {[%clk 0:03:00.6]}
7. Nd2 {[%clk 0:02:50.7]} 7... c6 {[%clk 0:03:00.3]} 8. Nf3 {[%clk 0:02:48.7]}
8... Qc7 {[%clk 0:02:59.6]} 9. b3 {[%clk 0:02:39.1]} 9... a5 {[%clk 0:02:59]}
10. Bb2 {[%clk 0:02:38.9]} 10... Na6 {[%clk 0:02:58]} 11. Rc1 {[%clk 0:02:37.6]}
11... Ne4 {[%clk 0:02:55.3]} 12. Nd2 {[%clk 0:02:26.2]} 12... Nxd2 {[%clk
0:02:42.3]} 13. Qxd2 {[%clk 0:02:26.1]} 13... e5 {[%clk 0:02:35.8]} 14. e3
{[%clk 0:02:04.7]} 14... Bd7 {[%clk 0:02:29.6]} 15. f4 {[%clk 0:02:02.4]} 15...
e4 {[%clk 0:02:27.5]} 16. Nf2 {[%clk 0:01:49.5]} 16... h5 {[%clk 0:02:22.4]} 17.
h4 {[%clk 0:01:45.6]} 17... Bf6 {[%clk 0:02:21.1]} 18. Nh3 {[%clk 0:01:34.4]}
18... Nb4 {[%clk 0:02:20.3]} 19. Bc3 {[%clk 0:01:17.1]} 19... Nd3 {[%clk
0:02:18.9]} 20. Rcd1 {[%clk 0:01:11.3]} 20... Qb6 {[%clk 0:02:03.6]} 21. Nf2
{[%clk 0:01:08.6]} 21... Nxf2 {[%clk 0:02:01.4]} 22. Rxf2 {[%clk 0:01:04.9]}
22... d5 {[%clk 0:01:53.1]} 23. c5 {[%clk 0:01:00.9]} 23... Qa7 {[%clk
0:01:52.6]} 24. Bf1 {[%clk 0:00:59.1]} 24... b6 {[%clk 0:01:51.9]} 25. cxb6
{[%clk 0:00:32.9]} 25... Qxb6 {[%clk 0:01:50.6]} 26. Bb2 {[%clk 0:00:31.5]}
26... Rfb8 {[%clk 0:01:44.8]} 27. Ba3 {[%clk 0:00:26.6]} 27... Bc8 {[%clk
0:01:27.2]} 28. Bc5 {[%clk 0:00:25.2]} 28... Qc7 {[%clk 0:01:24.6]} 29. Be2
{[%clk 0:00:25.1]} 29... Be7 {[%clk 0:01:22.1]} 30. Rc1 {[%clk 0:00:22.9]} 30...
Bxc5 {[%clk 0:01:18.3]} 31. Rxc5 {[%clk 0:00:22.3]} 31... Qb6 {[%clk 0:01:13.4]}
32. Bxh5 {[%clk 0:00:20.9]} 32... a4 {[%clk 0:01:12.5]} 33. Rc3 {[%clk
0:00:13.9]} 33... axb3 {[%clk 0:01:04.3]} 34. axb3 {[%clk 0:00:11.6]} 34... Ra1+
{[%clk 0:00:58]} 35. Kg2 {[%clk 0:00:11.5]} 35... Rba8 {[%clk 0:00:53.5]} 36.
Be8 {[%clk 0:00:04.9]} 36... Bb7 {[%clk 0:00:51.6]} 37. Bh5 {[%clk 0:00:02.5]}
37... Qb5 {[%clk 0:00:47.2]} 38. Be2 {[%clk 0:00:02]} 38... Qb4 {[%clk
0:00:45.6]} 0-1

[Event "*** Titled Tuesday Blitz"]
[Site "Chess.com"]
[Date "2021.03.09"]
[Round "8"]
[White "Grandmaster2B"]
[Black "13MiRacLe"]
[Result "1-0"]
[WhiteElo "2569"]
[BlackElo "2675"]
[TimeControl "180+1"]
[EndTime "11:31:09 PST"]
[Termination "Grandmaster2B won on time"]

1. e4 {[%clk 0:03:00.9]} 1... e5 {[%clk 0:02:58.9]} 2. Nf3 {[%clk 0:03:01.4]}
2... Nc6 {[%clk 0:02:58.8]} 3. Bb5 {[%clk 0:03:02]} 3... a6 {[%clk 0:02:57.8]}
4. Ba4 {[%clk 0:03:02.6]} 4... Nf6 {[%clk 0:02:56.7]} 5. d3 {[%clk 0:03:03]}
5... b5 {[%clk 0:02:57]} 6. Bb3 {[%clk 0:03:03]} 6... Bc5 {[%clk 0:02:57.9]} 7.
Nc3 {[%clk 0:03:03.2]} 7... d6 {[%clk 0:02:57.2]} 8. Nd5 {[%clk 0:03:03.9]} 8...
h6 {[%clk 0:02:54]} 9. c3 {[%clk 0:03:04.2]} 9... Rb8 {[%clk 0:02:54.3]} 10. O-O
{[%clk 0:03:02.4]} 10... O-O {[%clk 0:02:46.2]} 11. h3 {[%clk 0:02:57.1]} 11...
Nxd5 {[%clk 0:02:34.1]} 12. exd5 {[%clk 0:02:43.4]} 12... Ne7 {[%clk 0:02:34.2]}
13. d4 {[%clk 0:02:44.3]} 13... exd4 {[%clk 0:02:33.1]} 14. Nxd4 {[%clk
0:02:45.2]} 14... Bb7 {[%clk 0:02:27.9]} 15. Ne2 {[%clk 0:02:42]} 15... Qd7
{[%clk 0:02:24.7]} 16. Nf4 {[%clk 0:02:41.2]} 16... Ng6 {[%clk 0:02:06.4]} 17.
Nh5 {[%clk 0:02:28.8]} 17... Qf5 {[%clk 0:01:59.8]} 18. g4 {[%clk 0:02:10.3]}
18... Qd7 {[%clk 0:01:46.6]} 19. Bxh6 {[%clk 0:02:05]} 19... f5 {[%clk
0:01:12.6]} 20. Bxg7 {[%clk 0:02:01]} 20... fxg4 {[%clk 0:01:09.9]} 21. Nf6+
{[%clk 0:01:54.6]} 21... Rxf6 {[%clk 0:01:09.4]} 22. Bxf6 {[%clk 0:01:55.5]}
22... Qf5 {[%clk 0:00:23.1]} 23. Bd4 {[%clk 0:01:49.1]} 23... gxh3 {[%clk
0:00:23.3]} 24. Kh1 {[%clk 0:01:39.2]} 24... Bxd5+ {[%clk 0:00:16.3]} 25. f3
{[%clk 0:01:38.7]} 25... Bxb3 {[%clk 0:00:11.4]} 26. Qxb3+ {[%clk 0:01:39.6]}
26... Kh7 {[%clk 0:00:09.7]} 27. Rae1 {[%clk 0:01:32.8]} 27... Rf8 {[%clk
0:00:08.2]} 28. Qe6 {[%clk 0:01:30.5]} 28... Qxe6 {[%clk 0:00:07.5]} 29. Rxe6
{[%clk 0:01:31.4]} 29... Bxd4 {[%clk 0:00:08]} 30. cxd4 {[%clk 0:01:32.3]} 30...
Nf4 {[%clk 0:00:08.8]} 31. Re7+ {[%clk 0:01:31.6]} 31... Kg6 {[%clk 0:00:09.5]}
32. Rxc7 {[%clk 0:01:27.2]} 32... Re8 {[%clk 0:00:08]} 33. Rg1+ {[%clk
0:01:18.9]} 33... Kf6 {[%clk 0:00:07.3]} 34. Rg4 {[%clk 0:01:18.4]} 34... Re1+
{[%clk 0:00:03.1]} 35. Kh2 {[%clk 0:01:18.8]} 35... Re2+ {[%clk 0:00:03.1]} 36.
Kg3 {[%clk 0:01:19.3]} 36... Nd5 {[%clk 0:00:01.8]} 37. Rc6 {[%clk 0:01:14.8]}
37... h2 {[%clk 0:00:02.3]} 38. Rxd6+ {[%clk 0:01:14.7]} 38... Ke7 {[%clk
0:00:02.9]} 39. Rh6 {[%clk 0:01:13.7]} 39... Ne3 {[%clk 0:00:03.5]} 40. Rg7+
{[%clk 0:00:55]} 40... Kf8 {[%clk 0:00:03.6]} 41. Ra7 {[%clk 0:00:55.4]} 41...
Nf1+ {[%clk 0:00:03]} 42. Kf4 {[%clk 0:00:54.3]} 42... Rg2 {[%clk 0:00:03.2]}
43. Rh8+ {[%clk 0:00:53.4]} 43... Rg8 {[%clk 0:00:02.6]} 44. Ra8+ {[%clk
0:00:54.3]} 44... Kf7 {[%clk 0:00:01.7]} 45. Raxg8 {[%clk 0:00:55.2]} 1-0

[Event "*** Titled Tuesday Blitz"]
[Site "Chess.com"]
[Date "2021.03.09"]
[Round "8"]
[White "Hikaru"]
[Black "Sibelephant"]
[Result "0-1"]
[WhiteElo "3164"]
[BlackElo "3112"]
[TimeControl "180+1"]
[EndTime "11:31:11 PST"]
[Termination "Sibelephant won by resignation"]

1. e4 {[%clk 0:03:00.9]} 1... c5 {[%clk 0:02:58]} 2. Nf3 {[%clk 0:02:57.8]} 2...
e6 {[%clk 0:02:58.3]} 3. c3 {[%clk 0:02:57.2]} 3... Nf6 {[%clk 0:02:57.1]} 4.
Bd3 {[%clk 0:02:57.2]} 4... d5 {[%clk 0:02:50.7]} 5. e5 {[%clk 0:02:56.9]} 5...
Nfd7 {[%clk 0:02:51.2]} 6. Bc2 {[%clk 0:02:57.2]} 6... d4 {[%clk 0:02:34.1]} 7.
O-O {[%clk 0:02:50.3]} 7... Nc6 {[%clk 0:02:33.9]} 8. Re1 {[%clk 0:02:50.9]}
8... g5 {[%clk 0:02:32.1]} 9. h3 {[%clk 0:02:40.8]} 9... h5 {[%clk 0:02:31.6]}
10. Ba4 {[%clk 0:02:40.5]} 10... g4 {[%clk 0:02:28.5]} 11. Nh2 {[%clk
0:02:39.8]} 11... gxh3 {[%clk 0:02:27.8]} 12. Bxc6 {[%clk 0:02:33.7]} 12... bxc6
{[%clk 0:02:27.2]} 13. g3 {[%clk 0:02:34.5]} 13... Bg7 {[%clk 0:01:41.8]} 14. f4
{[%clk 0:02:31.9]} 14... Nb6 {[%clk 0:01:28.8]} 15. d3 {[%clk 0:02:11.8]} 15...
f6 {[%clk 0:01:09.7]} 16. c4 {[%clk 0:01:54.1]} 16... fxe5 {[%clk 0:01:08.9]}
17. fxe5 {[%clk 0:01:55]} 17... Qc7 {[%clk 0:00:39.4]} 18. Bf4 {[%clk
0:01:52.9]} 18... Bb7 {[%clk 0:00:36.9]} 19. Nd2 {[%clk 0:01:49]} 19... O-O-O
{[%clk 0:00:37.1]} 20. Nhf3 {[%clk 0:01:48.6]} 20... Rdf8 {[%clk 0:00:29.8]} 21.
Ne4 {[%clk 0:01:43.4]} 21... h4 {[%clk 0:00:29.4]} 22. Kh2 {[%clk 0:01:34]}
22... hxg3+ {[%clk 0:00:29.4]} 23. Bxg3 {[%clk 0:01:34]} 23... Bh6 {[%clk
0:00:28.5]} 24. Nxc5 {[%clk 0:01:16.1]} 24... Qf7 {[%clk 0:00:23]} 25. Rf1
{[%clk 0:01:11]} 25... Bf4 {[%clk 0:00:23]} 26. Bxf4 {[%clk 0:01:05]} 26...
Qxf4+ {[%clk 0:00:22.8]} 27. Kh1 {[%clk 0:01:05.8]} 27... Qg3 {[%clk 0:00:19.8]}
28. Qe2 {[%clk 0:01:05.7]} 28... Rfg8 {[%clk 0:00:18.4]} 29. Rfe1 {[%clk
0:00:50.3]} 29... h2 {[%clk 0:00:11.9]} 30. Nxh2 {[%clk 0:00:08.4]} 30... Rxh2+
{[%clk 0:00:11.8]} 31. Qxh2 {[%clk 0:00:09.3]} 0-1

[Event "*** Titled Tuesday Blitz"]
[Site "Chess.com"]
[Date "2021.03.09"]
[Round "8"]
[White "aquaticpineapples"]
[Black "dhaessel"]
[Result "1-0"]
[WhiteElo "2206"]
[BlackElo "1956"]
[TimeControl "180+1"]
[EndTime "11:31:11 PST"]
[Termination "aquaticpineapples won on time"]

1. d4 {[%clk 0:03:00.9]} 1... Nf6 {[%clk 0:02:56.5]} 2. Nf3 {[%clk 0:03:00.5]}
2... g6 {[%clk 0:02:56]} 3. Nbd2 {[%clk 0:03:00.5]} 3... d5 {[%clk 0:02:54.8]}
4. e3 {[%clk 0:03:00.5]} 4... Bg7 {[%clk 0:02:55.1]} 5. b4 {[%clk 0:03:01.1]}
5... a5 {[%clk 0:02:53.3]} 6. b5 {[%clk 0:03:00.2]} 6... c5 {[%clk 0:02:43.7]}
7. c4 {[%clk 0:02:56.3]} 7... cxd4 {[%clk 0:02:38.9]} 8. Nxd4 {[%clk 0:02:56]}
8... O-O {[%clk 0:02:35.7]} 9. Bb2 {[%clk 0:02:54.2]} 9... Nbd7 {[%clk
0:02:23.6]} 10. Qc2 {[%clk 0:02:47.7]} 10... e5 {[%clk 0:02:21]} 11. N4f3 {[%clk
0:02:47.1]} 11... Re8 {[%clk 0:02:18.7]} 12. Be2 {[%clk 0:02:44.3]} 12... Qc7
{[%clk 0:02:09.1]} 13. O-O {[%clk 0:02:40.3]} 13... b6 {[%clk 0:01:55.6]} 14.
Rfc1 {[%clk 0:02:36.7]} 14... Bb7 {[%clk 0:01:53.6]} 15. cxd5 {[%clk 0:02:25.9]}
15... Qxc2 {[%clk 0:01:52.1]} 16. Rxc2 {[%clk 0:02:26.8]} 16... Nxd5 {[%clk
0:01:46.6]} 17. Nc4 {[%clk 0:02:23.6]} 17... e4 {[%clk 0:01:30.6]} 18. Nd4
{[%clk 0:02:10.2]} 18... Rac8 {[%clk 0:00:56.9]} 19. a3 {[%clk 0:01:57.6]} 19...
Bxd4 {[%clk 0:00:29.9]} 20. Bxd4 {[%clk 0:01:55.2]} 20... Nc5 {[%clk 0:00:29.2]}
21. Nd6 {[%clk 0:01:38.2]} 21... Nb3 {[%clk 0:00:29]} 22. Rxc8 {[%clk
0:01:27.5]} 22... Rxc8 {[%clk 0:00:20.4]} 23. Nxc8 {[%clk 0:01:22.2]} 23... Nxa1
{[%clk 0:00:19.7]} 24. Nd6 {[%clk 0:01:18.3]} 24... Nc2 {[%clk 0:00:17.2]} 25.
Nxb7 {[%clk 0:01:15.6]} 25... Nxd4 {[%clk 0:00:15.5]} 26. exd4 {[%clk
0:01:16.5]} 26... Nc3 {[%clk 0:00:15.9]} 27. Bc4 {[%clk 0:01:13]} 27... Kf8
{[%clk 0:00:14.4]} 28. Kf1 {[%clk 0:01:08.2]} 28... Ke7 {[%clk 0:00:15.3]} 29.
Ke1 {[%clk 0:01:07.3]} 29... f5 {[%clk 0:00:14.2]} 30. Bg8 {[%clk 0:00:47.2]}
30... h6 {[%clk 0:00:11.8]} 31. d5 {[%clk 0:00:36.2]} 31... Nxb5 {[%clk
0:00:10.6]} 32. Kd2 {[%clk 0:00:30.8]} 32... Kd7 {[%clk 0:00:07.6]} 33. d6
{[%clk 0:00:23.3]} 1-0

[Event "*** Titled Tuesday Blitz"]
[Site "Chess.com"]
[Date "2021.03.09"]
[Round "8"]
[White "CraiggoryC"]
[Black "eduardoperalta"]
[Result "0-1"]
[WhiteElo "2304"]
[BlackElo "2533"]
[TimeControl "180+1"]
[EndTime "11:31:14 PST"]
[Termination "eduardoperalta won on time"]

1. e4 {[%clk 0:03:00.9]} 1... c5 {[%clk 0:02:59.4]} 2. Nf3 {[%clk 0:02:59.7]}
2... Nc6 {[%clk 0:02:59.1]} 3. d4 {[%clk 0:03:00.3]} 3... cxd4 {[%clk 0:03:00]}
4. Nxd4 {[%clk 0:03:00.7]} 4... Nf6 {[%clk 0:03:00.2]} 5. Nc3 {[%clk 0:03:01.3]}
5... d6 {[%clk 0:03:00.4]} 6. Bc4 {[%clk 0:03:00.5]} 6... e5 {[%clk 0:02:59.4]}
7. Nf5 {[%clk 0:02:30.2]} 7... Be6 {[%clk 0:02:57]} 8. Bb3 {[%clk 0:02:26.3]}
8... g6 {[%clk 0:02:55.1]} 9. Ne3 {[%clk 0:02:21.8]} 9... Bg7 {[%clk 0:02:52.9]}
10. O-O {[%clk 0:02:10.6]} 10... O-O {[%clk 0:02:52.1]} 11. Ned5 {[%clk
0:02:09.2]} 11... Nd4 {[%clk 0:02:50.1]} 12. Bg5 {[%clk 0:02:06.2]} 12... Rc8
{[%clk 0:02:22.8]} 13. f4 {[%clk 0:01:45.7]} 13... h6 {[%clk 0:01:45.1]} 14.
fxe5 {[%clk 0:01:31.8]} 14... hxg5 {[%clk 0:01:44.2]} 15. exf6 {[%clk
0:01:27.6]} 15... Nxb3 {[%clk 0:01:24.1]} 16. axb3 {[%clk 0:01:13.2]} 16... Bh6
{[%clk 0:01:07.5]} 17. Ne7+ {[%clk 0:01:07.4]} 17... Kh7 {[%clk 0:01:06.7]} 18.
Nxc8 {[%clk 0:01:03.3]} 18... Qxc8 {[%clk 0:01:05.1]} 19. Qd4 {[%clk 0:00:30.6]}
19... a6 {[%clk 0:01:01.3]} 20. Rf2 {[%clk 0:00:20.7]} 20... g4 {[%clk
0:00:58.4]} 21. Rd1 {[%clk 0:00:19.5]} 21... Rd8 {[%clk 0:00:56.2]} 22. Nd5
{[%clk 0:00:17.8]} 22... Qc6 {[%clk 0:00:45.1]} 23. Re2 {[%clk 0:00:15.9]} 23...
Qb5 {[%clk 0:00:41.4]} 24. c4 {[%clk 0:00:13.2]} 24... Qxb3 {[%clk 0:00:40.4]}
25. Rd3 {[%clk 0:00:12.9]} 25... Qa2 {[%clk 0:00:30.7]} 26. Kf2 {[%clk
0:00:11.5]} 26... b5 {[%clk 0:00:27.8]} 27. cxb5 {[%clk 0:00:07.7]} 27... axb5
{[%clk 0:00:27.2]} 28. Nc7 {[%clk 0:00:07.8]} 28... Bc4 {[%clk 0:00:24.8]} 29.
Ree3 {[%clk 0:00:05.1]} 29... Qb1 {[%clk 0:00:21.8]} 30. Rd2 {[%clk 0:00:03.7]}
30... Qf1+ {[%clk 0:00:19.9]} 31. Kg3 {[%clk 0:00:03.6]} 31... Qf4+ {[%clk
0:00:18.4]} 0-1